[Event "Late-Titled-Tuesday-Blitz-September-05-2023"]
[Site "Chess.com"]
[Date "2023.09.05"]
[Round "9"]
[White "Chessdreamer2020"]
[Black "DeTimmerman"]
[Result "0-1"]
[WhiteElo "2519"]
[BlackElo "2682"]
[TimeControl "180+1"]
[EndTime "15:46:16 PDT"]
[Termination "DeTimmerman won by checkmate"]

1. e4 {[%clk 0:03:00]} 1... e5 {[%clk 0:03:00.2]} 2. Nf3 {[%clk 0:03:00.2]} 2...
Nc6 {[%clk 0:03:00.2]} 3. Bb5 {[%clk 0:03:00.5]} 3... f5 {[%clk 0:03:00.7]} 4.
Qe2 {[%clk 0:02:59.5]} 4... fxe4 {[%clk 0:02:59.7]} 5. Qxe4 {[%clk 0:03:00.4]}
5... Nf6 {[%clk 0:02:59.8]} 6. Qe2 {[%clk 0:03:00.9]} 6... e4 {[%clk 0:02:52.7]}
7. Nc3 {[%clk 0:02:58.8]} 7... Qe7 {[%clk 0:02:50.4]} 8. Ng5 {[%clk 0:02:15.2]}
8... d5 {[%clk 0:02:47]} 9. d3 {[%clk 0:02:06.3]} 9... h6 {[%clk 0:02:43.6]} 10.
Nh3 {[%clk 0:02:06]} 10... Bg4 {[%clk 0:02:42.8]} 11. Qe3 {[%clk 0:01:45.9]}
11... O-O-O {[%clk 0:02:24.7]} 12. Bxc6 {[%clk 0:01:38.9]} 12... bxc6 {[%clk
0:02:11.5]} 13. d4 {[%clk 0:01:24.3]} 13... c5 {[%clk 0:02:01.9]} 14. Nf4 {[%clk
0:01:15.1]} 14... cxd4 {[%clk 0:02:01.4]} 15. Qxd4 {[%clk 0:01:15.3]} 15... Qc5
{[%clk 0:01:49.4]} 16. Be3 {[%clk 0:01:00.5]} 16... Qxd4 {[%clk 0:01:43.8]} 17.
Bxd4 {[%clk 0:01:01.4]} 17... c6 {[%clk 0:01:28.9]} 18. Bxa7 {[%clk 0:00:57.7]}
18... Bd6 {[%clk 0:01:28.6]} 19. Ng6 {[%clk 0:00:47.9]} 19... Rhe8 {[%clk
0:01:26]} 20. Bd4 {[%clk 0:00:23]} 20... Bf5 {[%clk 0:01:24.4]} 21. Nh4 {[%clk
0:00:21.9]} 21... Bh7 {[%clk 0:01:24.7]} 22. g3 {[%clk 0:00:20.7]} 22... Be5
{[%clk 0:01:19.2]} 23. Bxe5 {[%clk 0:00:20.2]} 23... Rxe5 {[%clk 0:01:19.9]} 24.
O-O-O {[%clk 0:00:19]} 24... g5 {[%clk 0:01:16.2]} 25. Ng2 {[%clk 0:00:18.9]}
25... d4 {[%clk 0:01:16.9]} 26. Na4 {[%clk 0:00:18.4]} 26... Kc7 {[%clk
0:01:10.9]} 27. h4 {[%clk 0:00:18.5]} 27... Ng4 {[%clk 0:01:02.8]} 28. Rdf1
{[%clk 0:00:13.2]} 28... Bg8 {[%clk 0:00:58.3]} 29. hxg5 {[%clk 0:00:12.7]}
29... hxg5 {[%clk 0:00:59]} 30. b3 {[%clk 0:00:12.8]} 30... Bd5 {[%clk
0:00:56.1]} 31. Rh7+ {[%clk 0:00:12.1]} 31... Rd7 {[%clk 0:00:52]} 32. Rxd7+
{[%clk 0:00:11.7]} 32... Kxd7 {[%clk 0:00:52.2]} 33. Ne1 {[%clk 0:00:09.2]}
33... Rf5 {[%clk 0:00:43.9]} 34. Kd1 {[%clk 0:00:04.8]} 34... Ne3+ {[%clk
0:00:43.1]} 35. fxe3 {[%clk 0:00:03.9]} 35... Rxf1 {[%clk 0:00:43.8]} 36. exd4
{[%clk 0:00:04]} 36... Rg1 {[%clk 0:00:43.5]} 37. c4 {[%clk 0:00:04.5]} 37...
Bf7 {[%clk 0:00:41.1]} 38. Nc5+ {[%clk 0:00:05]} 38... Ke7 {[%clk 0:00:36.7]}
39. Nxe4 {[%clk 0:00:05.9]} 39... g4 {[%clk 0:00:36.5]} 40. Nf2 {[%clk
0:00:05.2]} 40... Rxg3 {[%clk 0:00:35.6]} 41. Ke2 {[%clk 0:00:05.1]} 41... Be6
{[%clk 0:00:32.8]} 42. Ne4 {[%clk 0:00:04.9]} 42... Rh3 {[%clk 0:00:30.9]} 43.
Ng2 {[%clk 0:00:04.8]} 43... Bf5 {[%clk 0:00:28.8]} 44. Nf2 {[%clk 0:00:05.2]}
44... Rh2 {[%clk 0:00:26.3]} 45. Kf1 {[%clk 0:00:04.8]} 45... g3 {[%clk
0:00:26.7]} 46. Nd1 {[%clk 0:00:04.3]} 46... Rh1+ {[%clk 0:00:21.9]} 47. Ke2
{[%clk 0:00:04.2]} 47... Bg4+ {[%clk 0:00:22.6]} 48. Ke3 {[%clk 0:00:04.3]}
48... Bxd1 {[%clk 0:00:22.6]} 49. d5 {[%clk 0:00:04.4]} 49... cxd5 {[%clk
0:00:21.8]} 50. cxd5 {[%clk 0:00:05.3]} 50... Rf1 {[%clk 0:00:20.1]} 51. b4
{[%clk 0:00:04.3]} 51... Rf2 {[%clk 0:00:19.7]} 52. Nf4 {[%clk 0:00:04.2]} 52...
Rxf4 {[%clk 0:00:18.9]} 53. Kxf4 {[%clk 0:00:05.1]} 53... g2 {[%clk 0:00:18.8]}
54. b5 {[%clk 0:00:05.9]} 54... g1=Q {[%clk 0:00:18.8]} 55. d6+ {[%clk
0:00:06.8]} 55... Kxd6 {[%clk 0:00:17.6]} 56. b6 {[%clk 0:00:07.7]} 56... Qxb6
{[%clk 0:00:17.6]} 57. a4 {[%clk 0:00:08.6]} 57... Qd4+ {[%clk 0:00:16.8]} 58.
Kg3 {[%clk 0:00:08.6]} 58... Qg4+ {[%clk 0:00:16.7]} 59. Kf2 {[%clk 0:00:08.7]}
59... Qf3+ {[%clk 0:00:16.8]} 60. Kg1 {[%clk 0:00:09.3]} 60... Be2 {[%clk
0:00:16.2]} 61. a5 {[%clk 0:00:10.2]} 61... Qg3+ {[%clk 0:00:16.6]} 62. Kh1
{[%clk 0:00:10]} 62... Bf3# {[%clk 0:00:17.3]} 0-1

[Event "Late-Titled-Tuesday-Blitz-September-05-2023"]
[Site "Chess.com"]
[Date "2023.09.05"]
[Round "9"]
[White "MagnusCarlsen"]
[Black "Jospem"]
[Result "1-0"]
[WhiteElo "3254"]
[BlackElo "3029"]
[TimeControl "180+1"]
[EndTime "15:46:24 PDT"]
[Termination "MagnusCarlsen won by checkmate"]

1. e4 {[%clk 0:03:00.9]} 1... c5 {[%clk 0:02:58.2]} 2. Nf3 {[%clk 0:03:01.3]}
2... d6 {[%clk 0:02:58.6]} 3. d4 {[%clk 0:03:00.9]} 3... cxd4 {[%clk 0:02:59]}
4. Nxd4 {[%clk 0:03:01.8]} 4... Nf6 {[%clk 0:02:59.5]} 5. Nc3 {[%clk 0:03:02.2]}
5... a6 {[%clk 0:02:59.3]} 6. g3 {[%clk 0:03:00.8]} 6... e5 {[%clk 0:02:59]} 7.
Nf3 {[%clk 0:03:00.9]} 7... Be7 {[%clk 0:02:58.1]} 8. Bg2 {[%clk 0:03:01.2]}
8... Nbd7 {[%clk 0:02:52.8]} 9. O-O {[%clk 0:03:01.8]} 9... O-O {[%clk
0:02:52.1]} 10. Nh4 {[%clk 0:03:01.9]} 10... g6 {[%clk 0:02:49.2]} 11. a4 {[%clk
0:02:56.3]} 11... Nc5 {[%clk 0:02:44.5]} 12. Re1 {[%clk 0:02:54.3]} 12... Bg4
{[%clk 0:02:44.2]} 13. Bf3 {[%clk 0:02:50.7]} 13... Be6 {[%clk 0:02:44]} 14. Ng2
{[%clk 0:02:44.2]} 14... Rc8 {[%clk 0:02:41.2]} 15. Ne3 {[%clk 0:02:40.9]} 15...
Ncd7 {[%clk 0:02:39]} 16. Bd2 {[%clk 0:02:33.4]} 16... Re8 {[%clk 0:02:32.2]}
17. a5 {[%clk 0:02:31.9]} 17... Bf8 {[%clk 0:02:31.8]} 18. Ncd5 {[%clk
0:02:25.5]} 18... Bxd5 {[%clk 0:02:32]} 19. exd5 {[%clk 0:02:26.2]} 19... e4
{[%clk 0:02:19.6]} 20. Bg2 {[%clk 0:02:25.5]} 20... Ne5 {[%clk 0:02:20.1]} 21.
Ra4 {[%clk 0:02:21.2]} 21... Ned7 {[%clk 0:02:05.9]} 22. Rb4 {[%clk 0:02:14.3]}
22... Qc7 {[%clk 0:01:56.5]} 23. Bc3 {[%clk 0:01:51.9]} 23... Bg7 {[%clk
0:01:49.3]} 24. Bh3 {[%clk 0:01:51.1]} 24... Rcd8 {[%clk 0:01:31.3]} 25. Rc4
{[%clk 0:01:37.1]} 25... Qb8 {[%clk 0:01:28.8]} 26. Bxd7 {[%clk 0:01:09.4]}
26... Nxd7 {[%clk 0:01:29.7]} 27. Bxg7 {[%clk 0:01:09]} 27... Kxg7 {[%clk
0:01:30.6]} 28. Ng4 {[%clk 0:01:09]} 28... f5 {[%clk 0:01:24.7]} 29. Qd4+ {[%clk
0:01:08.7]} 29... Ne5 {[%clk 0:01:25.2]} 30. Nxe5 {[%clk 0:01:08.8]} 30... Rxe5
{[%clk 0:01:22.9]} 31. Re3 {[%clk 0:01:03.3]} 31... Rd7 {[%clk 0:01:18.9]} 32.
Rb4 {[%clk 0:00:59.8]} 32... Qc7 {[%clk 0:01:11]} 33. Reb3 {[%clk 0:00:59.5]}
33... Qxc2 {[%clk 0:00:33.2]} 34. Rxb7 {[%clk 0:00:59.2]} 34... Rf7 {[%clk
0:00:33.5]} 35. Rxf7+ {[%clk 0:00:54]} 35... Kxf7 {[%clk 0:00:34.4]} 36. Rb7+
{[%clk 0:00:53.6]} 36... Re7 {[%clk 0:00:35]} 37. Rxe7+ {[%clk 0:00:53.5]} 37...
Kxe7 {[%clk 0:00:35.9]} 38. Qg7+ {[%clk 0:00:53.7]} 38... Kd8 {[%clk 0:00:35]}
39. Qg8+ {[%clk 0:00:51.3]} 39... Kc7 {[%clk 0:00:35.3]} 40. Qxh7+ {[%clk
0:00:51.2]} 40... Kb8 {[%clk 0:00:35.8]} 41. Qh8+ {[%clk 0:00:48.6]} 41... Kb7
{[%clk 0:00:35.4]} 42. Qg7+ {[%clk 0:00:49]} 42... Kb8 {[%clk 0:00:35.2]} 43.
Qd4 {[%clk 0:00:45.4]} 43... Qe2 {[%clk 0:00:26.1]} 44. Qb6+ {[%clk 0:00:41.1]}
44... Ka8 {[%clk 0:00:26.5]} 45. Qc6+ {[%clk 0:00:41.4]} 45... Ka7 {[%clk
0:00:26.7]} 46. Qb6+ {[%clk 0:00:38.8]} 46... Ka8 {[%clk 0:00:27.2]} 47. Qd4
{[%clk 0:00:39.4]} 47... Kb7 {[%clk 0:00:19.9]} 48. h4 {[%clk 0:00:39.3]} 48...
Kc8 {[%clk 0:00:12.1]} 49. Qh8+ {[%clk 0:00:34.4]} 49... Kb7 {[%clk 0:00:12.6]}
50. Qg7+ {[%clk 0:00:34.9]} 50... Ka8 {[%clk 0:00:13.2]} 51. Qf8+ {[%clk
0:00:34.5]} 51... Kb7 {[%clk 0:00:13.1]} 52. Qe7+ {[%clk 0:00:34.6]} 52... Ka8
{[%clk 0:00:13.1]} 53. Qxd6 {[%clk 0:00:34.6]} 53... Qd1+ {[%clk 0:00:11.6]} 54.
Kh2 {[%clk 0:00:34.7]} 54... Qe2 {[%clk 0:00:12.3]} 55. Qc6+ {[%clk 0:00:33.5]}
55... Ka7 {[%clk 0:00:12.6]} 56. Qb6+ {[%clk 0:00:34]} 56... Ka8 {[%clk
0:00:13]} 57. d6 {[%clk 0:00:33.9]} 57... f4 {[%clk 0:00:13.2]} 58. gxf4 {[%clk
0:00:21.7]} 58... Qg4 {[%clk 0:00:13.8]} 59. Qxa6+ {[%clk 0:00:20.9]} 59... Kb8
{[%clk 0:00:14.3]} 60. Qb6+ {[%clk 0:00:21.5]} 60... Ka8 {[%clk 0:00:14.9]} 61.
Qd8+ {[%clk 0:00:20.9]} 61... Ka7 {[%clk 0:00:15.6]} 62. Qg5 {[%clk 0:00:21.1]}
62... Qf3 {[%clk 0:00:15.3]} 63. Qg3 {[%clk 0:00:17.3]} 63... Qd1 {[%clk
0:00:16]} 64. Qxg6 {[%clk 0:00:16]} 64... Qd4 {[%clk 0:00:14.3]} 65. Kg2 {[%clk
0:00:13.5]} 65... Qd5 {[%clk 0:00:13.8]} 66. Qg5 {[%clk 0:00:10.7]} 66... Qc6
{[%clk 0:00:12.7]} 67. Qe7+ {[%clk 0:00:09.9]} 67... Ka6 {[%clk 0:00:12.1]} 68.
Qc7 {[%clk 0:00:10.3]} 68... Qe8 {[%clk 0:00:11.9]} 69. Qb6# {[%clk 0:00:10.3]}
1-0

[Event "Late-Titled-Tuesday-Blitz-September-05-2023"]
[Site "Chess.com"]
[Date "2023.09.05"]
[Round "9"]
[White "CraiggoryC"]
[Black "Maluco_do_Natal_00"]
[Result "1-0"]
[WhiteElo "2223"]
[BlackElo "1978"]
[TimeControl "180+1"]
[EndTime "15:46:25 PDT"]
[Termination "CraiggoryC won on time"]

1. e4 {[%clk 0:02:58.2]} 1... c5 {[%clk 0:02:59.6]} 2. Nf3 {[%clk 0:02:58.2]}
2... Nc6 {[%clk 0:03:00]} 3. d4 {[%clk 0:02:58.8]} 3... cxd4 {[%clk 0:03:00.9]}
4. Nxd4 {[%clk 0:02:59.6]} 4... Nf6 {[%clk 0:03:01.2]} 5. Nc3 {[%clk 0:02:59.9]}
5... e5 {[%clk 0:03:01.5]} 6. Ndb5 {[%clk 0:03:00.4]} 6... d6 {[%clk 0:03:02.1]}
7. Bg5 {[%clk 0:03:00.8]} 7... a6 {[%clk 0:03:02.4]} 8. Na3 {[%clk 0:03:01.2]}
8... b5 {[%clk 0:03:02.2]} 9. Bxf6 {[%clk 0:03:01.8]} 9... gxf6 {[%clk
0:03:00.8]} 10. Nd5 {[%clk 0:03:02.7]} 10... Bg7 {[%clk 0:03:00.7]} 11. Bd3
{[%clk 0:03:03]} 11... Be6 {[%clk 0:02:58.5]} 12. O-O {[%clk 0:03:00.9]} 12...
f5 {[%clk 0:02:58.2]} 13. Qh5 {[%clk 0:02:54.6]} 13... Bxd5 {[%clk 0:02:29.5]}
14. exd5 {[%clk 0:02:54.7]} 14... Ne7 {[%clk 0:02:27.2]} 15. Bxf5 {[%clk
0:02:41.3]} 15... Nxf5 {[%clk 0:02:24.4]} 16. Qxf5 {[%clk 0:02:41.2]} 16... O-O
{[%clk 0:02:24.5]} 17. c4 {[%clk 0:02:28.2]} 17... Rb8 {[%clk 0:01:41.9]} 18.
Rac1 {[%clk 0:02:14.3]} 18... b4 {[%clk 0:01:29.9]} 19. Nc2 {[%clk 0:02:13.5]}
19... b3 {[%clk 0:01:26.5]} 20. axb3 {[%clk 0:01:49.3]} 20... Rxb3 {[%clk
0:01:27.4]} 21. Ra1 {[%clk 0:01:37.5]} 21... Qb6 {[%clk 0:01:18.4]} 22. Ne3
{[%clk 0:01:30.2]} 22... Rxb2 {[%clk 0:01:05.2]} 23. Qg4 {[%clk 0:01:20.4]}
23... Qd4 {[%clk 0:00:56.6]} 24. Qxd4 {[%clk 0:01:14.7]} 24... exd4 {[%clk
0:00:56.2]} 25. Nf5 {[%clk 0:01:15.3]} 25... Rb6 {[%clk 0:00:31.1]} 26. Rad1
{[%clk 0:01:03.4]} 26... Rb4 {[%clk 0:00:23.1]} 27. Nxd6 {[%clk 0:00:57.6]}
27... Be5 {[%clk 0:00:17]} 28. c5 {[%clk 0:00:49.5]} 28... Bxd6 {[%clk
0:00:16.9]} 29. cxd6 {[%clk 0:00:50]} 29... Rd8 {[%clk 0:00:17.5]} 30. Rd3
{[%clk 0:00:24.4]} 30... Rxd6 {[%clk 0:00:17.3]} 31. Ra3 {[%clk 0:00:16.6]}
31... Rb5 {[%clk 0:00:14.3]} 32. Rfa1 {[%clk 0:00:11.3]} 32... Rbxd5 {[%clk
0:00:13]} 33. Rxa6 {[%clk 0:00:11.5]} 33... Rxa6 {[%clk 0:00:13.2]} 34. Rxa6
{[%clk 0:00:12.3]} 34... d3 {[%clk 0:00:12.7]} 35. Ra1 {[%clk 0:00:09.3]} 35...
f5 {[%clk 0:00:12.5]} 36. Kf1 {[%clk 0:00:08.9]} 36... Kf7 {[%clk 0:00:12.7]}
37. Rd1 {[%clk 0:00:08.7]} 37... Ke6 {[%clk 0:00:12.9]} 38. f4 {[%clk
0:00:08.4]} 38... Kd6 {[%clk 0:00:12.9]} 39. Kf2 {[%clk 0:00:08.4]} 39... Kc5
{[%clk 0:00:12.4]} 40. Ke3 {[%clk 0:00:08.5]} 40... Kc4 {[%clk 0:00:12.8]} 41.
Rc1+ {[%clk 0:00:08.9]} 41... Kb3 {[%clk 0:00:12.1]} 42. Kd2 {[%clk 0:00:09.2]}
42... Rd4 {[%clk 0:00:10]} 43. g3 {[%clk 0:00:09.5]} 43... Rd5 {[%clk 0:00:09]}
44. Rc3+ {[%clk 0:00:09.6]} 44... Kb4 {[%clk 0:00:08.7]} 45. Rxd3 {[%clk
0:00:10.3]} 45... Ra5 {[%clk 0:00:07.3]} 46. Rd4+ {[%clk 0:00:09.2]} 46... Kb3
{[%clk 0:00:07.2]} 47. Rd3+ {[%clk 0:00:08.9]} 47... Kc4 {[%clk 0:00:07]} 48.
Ke3 {[%clk 0:00:08.6]} 48... Ra2 {[%clk 0:00:06.7]} 49. Rd2 {[%clk 0:00:08.3]}
49... Ra1 {[%clk 0:00:06.4]} 50. Kf2 {[%clk 0:00:08]} 50... Rh1 {[%clk
0:00:05.8]} 51. Kg2 {[%clk 0:00:08.3]} 51... Ra1 {[%clk 0:00:04.7]} 52. Rd7
{[%clk 0:00:08.3]} 52... Ra2+ {[%clk 0:00:05]} 53. Kh3 {[%clk 0:00:08.2]} 53...
Ra5 {[%clk 0:00:03.4]} 54. Rxh7 {[%clk 0:00:07.9]} 54... Kd4 {[%clk 0:00:03.8]}
55. Rh5 {[%clk 0:00:07.7]} 55... Ke4 {[%clk 0:00:03.8]} 56. Kh4 {[%clk
0:00:07.6]} 56... Ra2 {[%clk 0:00:03.6]} 57. h3 {[%clk 0:00:07.2]} 57... Ra3
{[%clk 0:00:02.6]} 58. Rh8 {[%clk 0:00:06.7]} 58... Ra1 {[%clk 0:00:01.5]} 59.
Re8+ {[%clk 0:00:06.7]} 59... Kf3 {[%clk 0:00:01.6]} 60. Re5 {[%clk 0:00:06.2]}
1-0

[Event "Late-Titled-Tuesday-Blitz-September-05-2023"]
[Site "Chess.com"]
[Date "2023.09.05"]
[Round "9"]
[White "AndreiITrifan"]
[Black "zeitnot2006"]
[Result "1-0"]
[WhiteElo "2644"]
[BlackElo "2740"]
[TimeControl "180+1"]
[EndTime "15:46:30 PDT"]
[Termination "AndreiITrifan won by resignation"]

1. e4 {[%clk 0:03:00.7]} 1... c5 {[%clk 0:02:59.7]} 2. Nf3 {[%clk 0:03:00.1]}
2... a6 {[%clk 0:02:59.2]} 3. c4 {[%clk 0:02:59.3]} 3... Nc6 {[%clk 0:02:58.6]}
4. d4 {[%clk 0:02:58.9]} 4... cxd4 {[%clk 0:02:59.5]} 5. Nxd4 {[%clk 0:02:59.5]}
5... e5 {[%clk 0:02:58.9]} 6. Nc2 {[%clk 0:02:52.7]} 6... Nf6 {[%clk 0:02:57]}
7. Nc3 {[%clk 0:02:52.2]} 7... Bc5 {[%clk 0:02:54.9]} 8. Be2 {[%clk 0:02:50.2]}
8... O-O {[%clk 0:02:53.8]} 9. O-O {[%clk 0:02:48.6]} 9... d6 {[%clk 0:02:52.2]}
10. b3 {[%clk 0:02:35.7]} 10... h6 {[%clk 0:02:47.3]} 11. Qd3 {[%clk 0:02:29.9]}
11... Be6 {[%clk 0:02:43.3]} 12. Rd1 {[%clk 0:02:27.4]} 12... Nd4 {[%clk
0:02:33.4]} 13. Nxd4 {[%clk 0:02:08.7]} 13... Bxd4 {[%clk 0:02:34.3]} 14. Bf3
{[%clk 0:02:08.7]} 14... Nd7 {[%clk 0:02:29.9]} 15. Be3 {[%clk 0:02:07.1]} 15...
Nc5 {[%clk 0:02:28.2]} 16. Qd2 {[%clk 0:02:06.6]} 16... Bxe3 {[%clk 0:02:21.1]}
17. Qxe3 {[%clk 0:02:07.5]} 17... Qc7 {[%clk 0:02:12.7]} 18. Rd2 {[%clk
0:02:05.4]} 18... Rfd8 {[%clk 0:02:11.5]} 19. Rad1 {[%clk 0:02:05.1]} 19... b6
{[%clk 0:02:06]} 20. Nd5 {[%clk 0:01:55.9]} 20... Bxd5 {[%clk 0:02:05.6]} 21.
Rxd5 {[%clk 0:01:56.8]} 21... Ne6 {[%clk 0:02:01.3]} 22. Qd2 {[%clk 0:01:50.2]}
22... Nd4 {[%clk 0:02:00.5]} 23. Be2 {[%clk 0:01:46.5]} 23... Rab8 {[%clk
0:01:51.2]} 24. Bf1 {[%clk 0:01:37.7]} 24... b5 {[%clk 0:01:45.9]} 25. Rc1
{[%clk 0:01:36.5]} 25... Rdc8 {[%clk 0:01:38.8]} 26. h3 {[%clk 0:01:26.8]} 26...
Qb6 {[%clk 0:01:11.8]} 27. Qb4 {[%clk 0:01:18.9]} 27... bxc4 {[%clk 0:01:02.5]}
28. Qxb6 {[%clk 0:01:16.7]} 28... Rxb6 {[%clk 0:01:03.4]} 29. Rxc4 {[%clk
0:01:16.1]} 29... Rxc4 {[%clk 0:00:44.7]} 30. Bxc4 {[%clk 0:01:17]} 30... Nb5
{[%clk 0:00:38.2]} 31. a4 {[%clk 0:00:50.2]} 31... Nc7 {[%clk 0:00:23.6]} 32.
Rd3 {[%clk 0:00:48.3]} 32... Kf8 {[%clk 0:00:18.6]} 33. Rf3 {[%clk 0:00:43.4]}
33... f6 {[%clk 0:00:17.9]} 34. h4 {[%clk 0:00:38.9]} 34... g5 {[%clk
0:00:14.9]} 35. Rxf6+ {[%clk 0:00:31.2]} 35... Ke7 {[%clk 0:00:15.6]} 36. Rf7+
{[%clk 0:00:24.1]} 36... Kd8 {[%clk 0:00:15.3]} 37. h5 {[%clk 0:00:24.5]} 37...
d5 {[%clk 0:00:10.9]} 38. exd5 {[%clk 0:00:22.5]} 38... Rd6 {[%clk 0:00:11.6]}
39. Rh7 {[%clk 0:00:20.4]} 39... a5 {[%clk 0:00:12.2]} 40. g3 {[%clk 0:00:20.4]}
40... Rf6 {[%clk 0:00:11.9]} 41. Kg2 {[%clk 0:00:20.4]} 41... Ne8 {[%clk
0:00:12.6]} 42. Bb5 {[%clk 0:00:19.5]} 42... Nd6 {[%clk 0:00:12.6]} 43. Bc6
{[%clk 0:00:19.7]} 43... Ne4 {[%clk 0:00:11.7]} 44. f3 {[%clk 0:00:18.5]} 44...
Nd2 {[%clk 0:00:12.2]} 45. Rd7+ {[%clk 0:00:18]} 45... Kc8 {[%clk 0:00:12]} 46.
Ra7 {[%clk 0:00:18]} 46... Nxf3 {[%clk 0:00:11.7]} 47. d6 {[%clk 0:00:18.2]}
47... Ne1+ {[%clk 0:00:10.8]} 48. Kh3 {[%clk 0:00:18.5]} 48... Rxd6 {[%clk
0:00:11.6]} 49. Be4 {[%clk 0:00:19]} 49... Rd4 {[%clk 0:00:10.3]} 50. Bf5+
{[%clk 0:00:18.5]} 50... Kb8 {[%clk 0:00:07.1]} 51. Rxa5 {[%clk 0:00:19.4]}
51... Nf3 {[%clk 0:00:05.9]} 52. Kg2 {[%clk 0:00:17.4]} 52... Ne1+ {[%clk
0:00:04.9]} 53. Kf2 {[%clk 0:00:16.8]} 53... Nd3+ {[%clk 0:00:05.2]} 54. Bxd3
{[%clk 0:00:16.6]} 54... Rxd3 {[%clk 0:00:06.1]} 55. Rxe5 {[%clk 0:00:17.3]}
55... Rxb3 {[%clk 0:00:06.1]} 56. Re6 {[%clk 0:00:17.2]} 56... Ra3 {[%clk
0:00:04.4]} 57. Rxh6 {[%clk 0:00:17.2]} 57... Rxa4 {[%clk 0:00:05.2]} 58. Rg6
{[%clk 0:00:15.8]} 58... g4 {[%clk 0:00:05.1]} 59. h6 {[%clk 0:00:16.1]} 59...
Ra2+ {[%clk 0:00:04.9]} 60. Ke3 {[%clk 0:00:16.4]} 60... Rh2 {[%clk 0:00:05.8]}
61. Kf4 {[%clk 0:00:16.3]} 61... Kc7 {[%clk 0:00:06.7]} 62. Kxg4 {[%clk
0:00:16.5]} 62... Kd7 {[%clk 0:00:07.6]} 63. Kg5 {[%clk 0:00:16.3]} 63... Ke7
{[%clk 0:00:08]} 64. g4 {[%clk 0:00:16.4]} 64... Kf7 {[%clk 0:00:08.1]} 65. Ra6
{[%clk 0:00:15.7]} 65... Kf8 {[%clk 0:00:09]} 66. Kg6 {[%clk 0:00:15.7]} 66...
Rc2 {[%clk 0:00:09.2]} 67. Ra8+ {[%clk 0:00:15.5]} 67... Ke7 {[%clk 0:00:09.2]}
68. h7 {[%clk 0:00:16.4]} 68... Rg2 {[%clk 0:00:08.5]} 69. h8=Q {[%clk 0:00:15]}
69... Rxg4+ {[%clk 0:00:09.1]} 70. Kh5 {[%clk 0:00:15.6]} 1-0

[Event "Late-Titled-Tuesday-Blitz-September-05-2023"]
[Site "Chess.com"]
[Date "2023.09.05"]
[Round "9"]
[White "arminmusovic"]
[Black "farzadbfd"]
[Result "1/2-1/2"]
[WhiteElo "2542"]
[BlackElo "2680"]
[TimeControl "180+1"]
[EndTime "15:46:33 PDT"]
[Termination "Game drawn by repetition"]

1. a3 {[%clk 0:02:49.5]} 1... d5 {[%clk 0:02:58.9]} 2. Nc3 {[%clk 0:02:48.4]}
2... Nf6 {[%clk 0:02:57.7]} 3. d3 {[%clk 0:02:47.9]} 3... e5 {[%clk 0:02:56.4]}
4. Bg5 {[%clk 0:02:47.1]} 4... Be7 {[%clk 0:02:53.4]} 5. e4 {[%clk 0:02:42.5]}
5... c6 {[%clk 0:02:34.1]} 6. h3 {[%clk 0:02:39.2]} 6... O-O {[%clk 0:02:30.4]}
7. Bd2 {[%clk 0:02:34.6]} 7... Re8 {[%clk 0:02:19.4]} 8. Nf3 {[%clk 0:02:31.7]}
8... Bc5 {[%clk 0:02:04.9]} 9. Be2 {[%clk 0:02:20.1]} 9... h6 {[%clk 0:02:04.9]}
10. O-O {[%clk 0:02:19.9]} 10... Nbd7 {[%clk 0:02:01.3]} 11. Nh2 {[%clk
0:01:59.9]} 11... Nf8 {[%clk 0:01:59.1]} 12. Ng4 {[%clk 0:01:52.5]} 12... Bxg4
{[%clk 0:01:35.1]} 13. Bxg4 {[%clk 0:01:41.5]} 13... dxe4 {[%clk 0:01:20.6]} 14.
dxe4 {[%clk 0:01:35.9]} 14... Nxg4 {[%clk 0:01:18.9]} 15. hxg4 {[%clk
0:01:33.5]} 15... Ne6 {[%clk 0:01:10.3]} 16. g3 {[%clk 0:01:21.7]} 16... Qf6
{[%clk 0:01:06.7]} 17. b4 {[%clk 0:00:54.2]} 17... Bd4 {[%clk 0:01:03.6]} 18.
Kg2 {[%clk 0:00:52.2]} 18... Rad8 {[%clk 0:01:03.6]} 19. Qf3 {[%clk 0:00:48.3]}
19... Qxf3+ {[%clk 0:00:53.2]} 20. Kxf3 {[%clk 0:00:49.2]} 20... Ng5+ {[%clk
0:00:52.5]} 21. Bxg5 {[%clk 0:00:47.7]} 21... hxg5 {[%clk 0:00:52.5]} 22. Na4
{[%clk 0:00:36.1]} 22... Bxa1 {[%clk 0:00:51.4]} 23. Rxa1 {[%clk 0:00:37]} 23...
Rd2 {[%clk 0:00:43.1]} 24. Rc1 {[%clk 0:00:35.3]} 24... b6 {[%clk 0:00:35.2]}
25. Ke3 {[%clk 0:00:32.3]} 25... Red8 {[%clk 0:00:33.8]} 26. Nb2 {[%clk
0:00:32.5]} 26... f6 {[%clk 0:00:33.2]} 27. Nd3 {[%clk 0:00:30.4]} 27... R2xd3+
{[%clk 0:00:14.6]} 28. cxd3 {[%clk 0:00:31.3]} 28... Rd6 {[%clk 0:00:14.9]} 29.
Rc3 {[%clk 0:00:25.3]} 29... Kf7 {[%clk 0:00:15]} 30. f4 {[%clk 0:00:25.5]}
30... gxf4+ {[%clk 0:00:14.3]} 31. gxf4 {[%clk 0:00:26.4]} 31... Ke7 {[%clk
0:00:12.9]} 32. fxe5 {[%clk 0:00:14.6]} 32... fxe5 {[%clk 0:00:13.2]} 33. Rc1
{[%clk 0:00:15]} 33... Kd7 {[%clk 0:00:13.4]} 34. Rf1 {[%clk 0:00:13.6]} 34...
Ke7 {[%clk 0:00:12.4]} 35. Rf5 {[%clk 0:00:13.3]} 35... Re6 {[%clk 0:00:12.4]}
36. d4 {[%clk 0:00:12.6]} 36... g6 {[%clk 0:00:12.4]} 37. Rg5 {[%clk 0:00:10.3]}
37... Kf6 {[%clk 0:00:11.1]} 38. Rxe5 {[%clk 0:00:09]} 38... Rxe5 {[%clk
0:00:11.6]} 39. dxe5+ {[%clk 0:00:09.9]} 39... Kxe5 {[%clk 0:00:12.5]} 40. g5
{[%clk 0:00:08]} 40... c5 {[%clk 0:00:10.9]} 41. bxc5 {[%clk 0:00:08.9]} 41...
bxc5 {[%clk 0:00:11.8]} 42. a4 {[%clk 0:00:09.6]} 42... c4 {[%clk 0:00:12]} 43.
a5 {[%clk 0:00:09.5]} 43... a6 {[%clk 0:00:12]} 44. Kf3 {[%clk 0:00:07.7]} 44...
Kd4 {[%clk 0:00:11.5]} 45. e5 {[%clk 0:00:04.1]} 45... Kxe5 {[%clk 0:00:11.6]}
46. Ke3 {[%clk 0:00:03.9]} 46... Kf5 {[%clk 0:00:11.5]} 47. Kd4 {[%clk 0:00:04]}
47... Kxg5 {[%clk 0:00:12]} 48. Kxc4 {[%clk 0:00:04.8]} 48... Kf5 {[%clk
0:00:12.5]} 49. Kc5 {[%clk 0:00:05.7]} 49... g5 {[%clk 0:00:12.8]} 50. Kb6
{[%clk 0:00:06.6]} 50... g4 {[%clk 0:00:13.3]} 51. Kxa6 {[%clk 0:00:07.5]} 51...
g3 {[%clk 0:00:13.7]} 52. Kb7 {[%clk 0:00:08.4]} 52... g2 {[%clk 0:00:14]} 53.
a6 {[%clk 0:00:09.3]} 53... g1=Q {[%clk 0:00:14.5]} 54. a7 {[%clk 0:00:10.2]}
54... Qg2+ {[%clk 0:00:14.7]} 55. Kb8 {[%clk 0:00:10.1]} 55... Qb2+ {[%clk
0:00:15.3]} 56. Ka8 {[%clk 0:00:10.3]} 56... Qa3 {[%clk 0:00:15.8]} 57. Kb8
{[%clk 0:00:10.2]} 57... Qb4+ {[%clk 0:00:16.1]} 58. Ka8 {[%clk 0:00:10.8]}
58... Qa5 {[%clk 0:00:16.6]} 59. Kb7 {[%clk 0:00:10.6]} 59... Qb5+ {[%clk
0:00:17.1]} 60. Ka8 {[%clk 0:00:11]} 60... Qc6+ {[%clk 0:00:16.3]} 61. Kb8
{[%clk 0:00:11]} 61... Qe8+ {[%clk 0:00:15.9]} 62. Kb7 {[%clk 0:00:11]} 62...
Qd7+ {[%clk 0:00:16.2]} 63. Kb8 {[%clk 0:00:11.1]} 63... Qd8+ {[%clk 0:00:16.6]}
64. Kb7 {[%clk 0:00:11.3]} 64... Qd7+ {[%clk 0:00:14.6]} 65. Kb8 {[%clk
0:00:11.5]} 65... Qb5+ {[%clk 0:00:13]} 66. Ka8 {[%clk 0:00:11.7]} 66... Qd5+
{[%clk 0:00:12.4]} 67. Kb8 {[%clk 0:00:11.8]} 67... Qd6+ {[%clk 0:00:12.7]} 68.
Kb7 {[%clk 0:00:11.8]} 68... Qd7+ {[%clk 0:00:11.8]} 1/2-1/2